fUST/lending_fUST_20250901
["ID","MTS","AMOUNT","RATE_DAILY","PERIOD"]
[382545859,1756663845876,-480.0,0.00017247,2]
[382545860,1756663845891,-480.0,0.00017247,2]
[382545861,1756663845905,-151.0,0.00017247,2]
[382545862,1756663845917,-500.0,0.00017247,2]
[382545863,1756663845929,-500.0,0.00017247,2]
[382545864,1756663845943,-242.19928668,0.00017247,2]
[382545865,1756663845955,-480.0,0.00017247,2]
[382545866,1756663845969,-1443.0,0.00017247,2]
[382545867,1756663845983,-480.0,0.00017247,2]
[382545868,1756663845995,-303.32377065,0.00017247,2]
[382545869,1756663846009,-480.0,0.00017247,2]
[382545870,1756663846023,-480.0,0.00017247,2]
[382545871,1756663846037,-500.0,0.00017247,2]
[382545872,1756663846049,-652.28,0.00017247,2]
[382545873,1756663846062,-574.84,0.00017247,2]
[382545874,1756663846074,-480.0,0.00017247,2]
[382545875,1756663846087,-532.79,0.00017247,2]
[382545876,1756663846101,-500.0,0.00017247,2]
[382545877,1756663846114,-151.0,0.00017247,2]
[382545878,1756663846124,-500.0,0.00017247,2]
[382545879,1756663846136,-151.0,0.00017247,2]
[382545880,1756663846148,-245.0,0.00017247,2]
[382545881,1756663846161,-269.37089005,0.00017247,2]
[382545882,1756663846174,-151.0,0.00017247,2]
[382545883,1756663846188,-151.0,0.00017247,2]
[382545884,1756663846201,-151.0,0.00017247,2]
[382545885,1756663846214,-151.0,0.00017247,2]
[382545886,1756663846233,-151.0,0.00017247,2]
[382545887,1756663846246,-151.0,0.00017247,2]
[382545888,1756663846257,-151.0,0.00017247,2]
[382545889,1756663846268,-151.943352,0.00017248,2]
[382545890,1756663846279,-151.0,0.00017248,2]
[382545891,1756663846290,-151.0,0.00017248,2]
[382545892,1756663846306,-151.0,0.00017248,2]
[382545893,1756663846319,-151.0,0.00017248,2]
[382545894,1756663846330,-151.0,0.00017248,2]
[382545895,1756663846341,-1078.08051521,0.0001725,2]
[382545896,1756663846352,-1078.08051521,0.0001725,2]
[382545897,1756663846366,-6925.69306259,0.0001725,2]
[382545898,1756663846378,-151.0,0.000173,2]
[382545899,1756663846389,-151.0,0.000173,2]
[382545900,1756663846401,-151.0,0.000173,2]
[382545901,1756663846413,-151.0,0.000173,2]
[382545902,1756663846424,-151.0,0.000173,2]
[382545903,1756663846436,-151.0,0.000173,2]
[382545904,1756663846448,-151.0,0.000173,2]
[382545905,1756663846459,-151.0,0.000173,2]
[382545906,1756663846470,-349.0,0.0001731,2]
[382545907,1756663846482,-154.95386853,0.00017317,2]
[382545908,1756663846493,-151.0,0.00017324,2]
[382545909,1756663846505,-151.0,0.00017324,2]
[382545910,1756663846516,-222.837283,0.00017324,2]
[382545911,1756663846527,-151.0,0.00017324,2]
[382545912,1756663846539,-151.0,0.00017324,2]
[382545913,1756663846550,-176.48709,0.00017324,2]
[382545914,1756663846562,-151.0,0.00017324,2]
[382545915,1756663846573,-151.0,0.00017324,2]
[382545916,1756663846584,-151.0,0.00017324,2]
[382545917,1756663846596,-151.0,0.00017324,2]
[382545918,1756663846607,-151.0,0.00017324,2]
[382545919,1756663846618,-238.055936,0.00017324,2]
[382545920,1756663846630,-238.055936,0.00017324,2]
[382545921,1756663846641,-238.055936,0.00017324,2]
[382545922,1756663846652,-238.055936,0.00017324,2]
[382545923,1756663846664,-168.0,0.00017334,2]
[382545924,1756663846675,-1114.55,0.00017344,2]
[382545925,1756663846687,-480.0,0.00017344,2]
[382545926,1756663846698,-480.0,0.00017344,2]
[382545927,1756663846712,-480.0,0.00017344,2]
[382545928,1756663846723,-484.58,0.00017344,2]
[382545929,1756663846735,-553.99,0.00017344,2]
[382545930,1756663846747,-584.35,0.00017344,2]
[382545931,1756663846759,-2129.52,0.00017344,2]
[382545932,1756663846771,-518.3,0.00017344,2]
[382545933,1756663846783,-276.06647076,0.00017344,2]
[382545934,1756663846794,-1761.05,0.00017344,2]
[382545935,1756663846806,-1192.46,0.00017344,2]
[382545936,1756663846817,-1754.38,0.00017344,2]
[382545937,1756663846829,-480.0,0.00017344,2]
[382545938,1756663846841,-259.71120939,0.00017344,2]
[382545939,1756663846853,-194.26412781,0.00017344,2]
[382545940,1756663846864,-744.54,0.00017344,2]
[382545941,1756663846875,-480.0,0.00017344,2]
[382545942,1756663846887,-480.0,0.00017344,2]
[382545943,1756663846899,-625.83,0.00017344,2]
[382545944,1756663846910,-760.49,0.00017344,2]
[382545945,1756663846922,-480.0,0.00017344,2]
[382545946,1756663846933,-480.0,0.00017344,2]
[382545947,1756663846948,-592.49,0.00017344,2]
[382545948,1756663846963,-567.45,0.00017344,2]
[382545949,1756663846975,-480.0,0.00017345,2]
[382545950,1756663846986,-1065.21,0.00017345,2]
[382545951,1756663846997,-480.0,0.00017345,2]
[382545952,1756663847010,-480.0,0.00017345,2]
[382545953,1756663847021,-480.0,0.00017345,2]
[382545954,1756663847033,-480.0,0.00017345,2]
[382545955,1756663847045,-480.0,0.00017345,2]
[382545956,1756663847056,-565.44,0.00017345,2]
[382545957,1756663847067,-480.0,0.00017345,2]
[382545958,1756663847080,-619.74,0.00017345,2]
[382545959,1756663847092,-504.19,0.00017345,2]
[382545960,1756663847111,-514.21,0.00017345,2]
[382545961,1756663847123,-1545.76,0.00017345,2]
[382545962,1756663847135,-492.2747479,0.00017345,2]
[382545963,1756663847146,-480.0,0.00017345,2]
[382545964,1756663847158,-480.0,0.00017345,2]
[382545965,1756663847169,-510.56,0.00017345,2]
[382545966,1756663847181,-480.0,0.00017345,2]
[382545967,1756663847193,-454.39174437,0.00017345,2]
[382545968,1756663847205,-738.05,0.00017345,2]
[382545969,1756663847217,-837.22,0.00017345,2]
[382545970,1756663847233,-480.0,0.00017345,2]
[382545971,1756663847244,-480.0,0.00017345,2]
[382545972,1756663847256,-480.0,0.00017345,2]
[382545973,1756663847270,-1035.09,0.00017345,2]
[382545974,1756663847281,-668.82,0.00017345,2]
[382545975,1756663847296,-1122.9,0.00017345,2]
[382545976,1756663847308,-719.24,0.00017345,2]
[382545977,1756663847320,-853.26,0.00017345,2]
[382545978,1756663847331,-480.0,0.00017345,2]
[382545979,1756663847343,-151.0,0.00017345,2]
[382545980,1756663847355,-151.0,0.00017345,2]
[382545981,1756663847367,-151.0,0.00017345,2]
[382545982,1756663847378,-151.0,0.00017345,2]
[382545983,1756663847390,-480.0,0.00017345,2]
[382545984,1756663847402,-502.13,0.00017345,2]
[382545985,1756663847413,-480.0,0.00017345,2]
[382545986,1756663847425,-480.0,0.00017345,2]
[382545987,1756663847436,-325.97501638,0.00017345,2]
[382545988,1756663847448,-480.0,0.00017345,2]
[382545989,1756663847460,-480.0,0.00017345,2]
[382545990,1756663847471,-586.78,0.00017345,2]
[382545991,1756663847482,-727.45,0.00017345,2]
[382545992,1756663847494,-480.0,0.00017345,2]
[382545993,1756663847506,-167.076088,0.00017345,2]
[382545994,1756663847518,-151.0,0.00017345,2]
[382545995,1756663847530,-480.0,0.00017345,2]
[382545996,1756663847541,-480.0,0.00017345,2]
[382545997,1756663847553,-506.27,0.00017345,2]
[382545998,1756663847564,-690.59,0.00017345,2]
[382545999,1756663847576,-1004.02,0.00017345,2]
[382546000,1756663847587,-1000.12,0.00017345,2]
[382546001,1756663847599,-480.0,0.00017345,2]
[382546002,1756663847609,-480.0,0.00017345,2]
[382546003,1756663847621,-480.0,0.00017345,2]
[382546004,1756663847632,-960.92,0.00017345,2]
[382546005,1756663847643,-5709.13,0.00017345,2]
[382546006,1756663847655,-807.97,0.00017345,2]
[382546007,1756663847666,-1056.16,0.00017345,2]
[382546008,1756663847677,-873.14,0.00017345,2]
[382546009,1756663847688,-3641.22,0.00017345,2]
[382546010,1756663847700,-151.0,0.00017345,2]
[382546011,1756663847712,-151.0,0.00017345,2]
[382546012,1756663847723,-652.64,0.00017345,2]
[382546013,1756663847735,-1023.16,0.00017345,2]
[382546014,1756663847747,-480.0,0.00017345,2]
[382546015,1756663847760,-1318.64,0.00017345,2]
[382546016,1756663847771,-151.0,0.00017345,2]
[382546017,1756663847784,-1747.03,0.00017345,2]
[382546018,1756663847795,-151.0,0.00017345,2]
[382546019,1756663847805,-480.0,0.00017345,2]
[382546020,1756663847816,-480.0,0.00017345,2]
[382546021,1756663847826,-480.0,0.00017345,2]
[382546022,1756663847836,-480.0,0.00017345,2]
[382546023,1756663848110,-480.0,0.00017345,2]
[382546024,1756663848127,-828.71,0.00017345,2]
[382546025,1756663848140,-480.0,0.00017345,2]
[382546026,1756663848150,-848.0,0.00017345,2]
[382546027,1756663848160,-494.09,0.00017345,2]
[382546028,1756663848171,-480.0,0.00017345,2]
[382546029,1756663848181,-480.0,0.00017345,2]
[382546030,1756663848191,-4134.51,0.00017345,2]
[382546031,1756663848200,-480.0,0.00017345,2]
[382546032,1756663848210,-480.0,0.00017345,2]
[382546033,1756663848221,-486.53,0.00017345,2]
[382546034,1756663848232,-480.0,0.00017345,2]
[382546035,1756663848243,-480.0,0.00017345,2]
[382546036,1756663848253,-4976.34,0.00017345,2]
[382546037,1756663848263,-899.11,0.00017345,2]
[382546038,1756663848273,-480.0,0.00017345,2]
[382546039,1756663848283,-604.68,0.00017345,2]
[382546040,1756663848293,-480.0,0.00017345,2]
[382546041,1756663848304,-151.343345,0.00017345,2]
[382546042,1756663848315,-2257.96,0.00017345,2]
[382546043,1756663848325,-915.0,0.00017345,2]
[382546044,1756663848336,-866.44,0.00017345,2]
[382546045,1756663848345,-494.9,0.00017345,2]
[382546046,1756663848355,-151.0,0.00017345,2]
[382546047,1756663848367,-279.423575,0.00017345,2]
[382546048,1756663848377,-480.0,0.00017345,2]
[382546049,1756663848390,-480.0,0.00017345,2]
[382546050,1756663848400,-1296.33,0.00017345,2]
[382546051,1756663848410,-480.0,0.00017345,2]
[382546052,1756663848420,-151.0,0.00017345,2]
[382546053,1756663848431,-480.0,0.00017345,2]
[382546054,1756663848440,-1042.9,0.00017345,2]
[382546055,1756663848451,-480.0,0.00017345,2]
[382546056,1756663848461,-997.0,0.00017345,2]
[382546057,1756663848472,-618.75,0.00017345,2]
[382546058,1756663848483,-480.0,0.00017345,2]
[382546059,1756663848493,-480.0,0.00017345,2]
[382546060,1756663848504,-151.0,0.00017345,2]
[382546061,1756663848514,-151.0,0.00017345,2]
[382546062,1756663848525,-151.0,0.00017345,2]
[382546063,1756663848534,-748.32,0.00017345,2]
[382546064,1756663848544,-480.0,0.00017345,2]
[382546065,1756663848553,-1041.59,0.00017345,2]
[382546066,1756663848563,-989.12,0.00017345,2]
[382546067,1756663848573,-480.0,0.00017345,2]
[382546068,1756663848582,-266.07364189,0.00017345,2]
[382546069,1756663848591,-523.97,0.00017345,2]
[382546070,1756663848600,-491.55237605,0.00017345,2]
[382546071,1756663848609,-480.0,0.00017345,2]
[382546072,1756663848618,-706.73,0.00017345,2]
[382546073,1756663848627,-1104.14,0.00017345,2]
[382546074,1756663848638,-480.0,0.00017345,2]
[382546075,1756663848646,-151.0,0.00017345,2]
[382546076,1756663848655,-480.0,0.00017345,2]
[382546077,1756663848665,-168.887494,0.00017345,2]
[382546078,1756663848675,-168.887494,0.00017345,2]
[382546079,1756663848683,-480.0,0.00017345,2]
[382546080,1756663848693,-168.887494,0.00017345,2]
[382546081,1756663848702,-151.0,0.00017345,2]
[382546082,1756663848711,-168.887494,0.00017345,2]
[382546083,1756663848720,-480.0,0.00017345,2]
[382546084,1756663848729,-942.43,0.00017345,2]
[382546085,1756663848738,-695.96,0.00017345,2]
[382546086,1756663848747,-480.0,0.00017345,2]
[382546087,1756663848756,-168.0,0.00017348,2]
[382546088,1756663848765,-168.0,0.00017358,2]
[382546089,1756663848774,-151.0,0.000174,2]
[382546090,1756663848783,-151.0,0.000174,2]
[382546091,1756663848793,-151.0,0.000174,2]
[382546092,1756663848802,-151.0,0.000174,2]
[382546093,1756663848811,-151.0,0.000174,2]
[382546094,1756663848819,-151.0,0.000174,2]
[382546095,1756663848828,-250.0,0.00017409,2]
[382546096,1756663848837,-151.0,0.00017419,2]
[382546097,1756663848846,-151.0,0.00017419,2]
[382546098,1756663848856,-151.0,0.00017419,2]
[382546099,1756663848865,-293.103662,0.00017419,2]
[382546100,1756663848874,-1887.87,0.00017419,2]
[382546101,1756663848884,-3163.64,0.00017419,2]
[382546102,1756663848893,-636.1,0.00017419,2]
[382546103,1756663848902,-480.0,0.00017419,2]
[382546104,1756663848911,-910.73,0.00017419,2]
[382546105,1756663848920,-1292.35,0.00017419,2]
[382546106,1756663848930,-600.18,0.00017419,2]
[382546107,1756663848939,-151.0,0.00017419,2]
[382546108,1756663848949,-184.038744,0.00017419,2]
[382546109,1756663848965,-151.0,0.00017419,2]
[382546110,1756663848974,-151.0,0.00017419,2]
[382546111,1756663848983,-151.0,0.00017419,2]
[382546112,1756663848992,-151.0,0.00017419,2]
[382546113,1756663849002,-151.0,0.00017419,2]
[382546114,1756663849012,-151.0,0.00017419,2]
[382546115,1756663849023,-480.0,0.0001742,2]
[382546116,1756663849032,-492.3,0.0001742,2]
[382546117,1756663849041,-498.98,0.0001742,2]
[382546118,1756663849050,-1166.01,0.0001742,2]
[382546119,1756663849060,-480.0,0.0001742,2]
[382546120,1756663849070,-480.0,0.0001742,2]
[382546121,1756663849079,-480.0,0.0001742,2]
[382546122,1756663849089,-526.61,0.0001742,2]
[382546123,1756663849099,-1015.61,0.0001742,2]
[382546124,1756663849108,-480.0,0.0001742,2]
[382546125,1756663849117,-480.0,0.0001742,2]
[382546126,1756663849126,-151.0,0.0001742,2]
[382546127,1756663849137,-151.0,0.0001742,2]
[382546128,1756663849147,-151.0,0.0001742,2]
[382546129,1756663849156,-480.0,0.0001742,2]
[382546130,1756663849166,-893.7,0.0001742,2]
[382546131,1756663849175,-151.0,0.0001742,2]
[382546132,1756663849184,-480.0,0.0001742,2]
[382546133,1756663849193,-480.0,0.0001742,2]
[382546134,1756663849202,-480.0,0.0001742,2]
[382546135,1756663849211,-588.99,0.0001742,2]
[382546136,1756663849221,-1280.26,0.0001742,2]
[382546137,1756663849233,-480.0,0.0001742,2]
[382546138,1756663849242,-1074.17,0.0001742,2]
[382546139,1756663849250,-480.0,0.0001742,2]
[382546140,1756663849259,-480.0,0.0001742,2]
[382546141,1756663849270,-607.35,0.0001742,2]
[382546142,1756663849279,-499.64,0.0001742,2]
[382546143,1756663849287,-1214.75,0.0001742,2]
[382546144,1756663849296,-480.0,0.0001742,2]
[382546145,1756663849307,-480.0,0.0001742,2]
[382546146,1756663849316,-600.48,0.0001742,2]
[382546147,1756663849324,-480.0,0.0001742,2]
[382546148,1756663849333,-480.0,0.0001742,2]
[382546149,1756663849342,-1129.46,0.0001742,2]
[382546150,1756663849351,-480.0,0.0001742,2]
[382546151,1756663849360,-333.91199684,0.0001742,2]
[382546152,1756663849369,-480.0,0.0001742,2]
[382546153,1756663849378,-669.42,0.0001742,2]
[382546154,1756663849388,-480.0,0.0001742,2]
[382546155,1756663849399,-487.47,0.0001742,2]
[382546156,1756663849408,-480.0,0.0001742,2]
[382546157,1756663849417,-1371.46,0.0001742,2]
[382546158,1756663849427,-1039.62,0.0001742,2]
[382546159,1756663849437,-480.0,0.0001742,2]
[382546160,1756663849449,-874.47,0.0001742,2]
[382546161,1756663849459,-480.0,0.0001742,2]
[382546162,1756663849468,-480.0,0.0001742,2]
[382546163,1756663849477,-480.0,0.0001742,2]
[382546164,1756663849487,-986.16,0.0001742,2]
[382546165,1756663849497,-480.0,0.0001742,2]
[382546166,1756663849506,-480.0,0.0001742,2]
[382546167,1756663849515,-480.0,0.0001742,2]
[382546168,1756663849525,-480.0,0.0001742,2]
[382546169,1756663849535,-151.0,0.0001742,2]
[382546170,1756663849544,-151.0,0.0001742,2]
[382546171,1756663849554,-151.0,0.0001742,2]
[382546172,1756663849563,-151.0,0.0001742,2]
[382546173,1756663849572,-524.75,0.0001742,2]
[382546174,1756663849582,-480.0,0.0001742,2]
[382546175,1756663849592,-151.0,0.0001742,2]
[382546176,1756663849601,-151.0,0.0001742,2]
[382546177,1756663849611,-1277.35,0.0001742,2]
[382546178,1756663849620,-480.0,0.0001742,2]
[382546179,1756663849629,-1064.59,0.0001742,2]
[382546180,1756663849640,-480.0,0.0001742,2]
[382546181,1756663849650,-480.0,0.0001742,2]
[382546182,1756663849659,-480.0,0.0001742,2]
[382546183,1756663849669,-717.99,0.0001742,2]
[382546184,1756663849678,-480.0,0.0001742,2]
[382546185,1756663849688,-480.0,0.0001742,2]
[382546186,1756663849697,-480.0,0.0001742,2]
[382546187,1756663849706,-567.93,0.0001742,2]
[382546188,1756663849716,-1157.17,0.0001742,2]
[382546189,1756663849725,-480.0,0.0001742,2]
[382546190,1756663849734,-151.0,0.0001742,2]
[382546191,1756663849743,-151.0,0.0001742,2]
[382546192,1756663849753,-480.0,0.0001742,2]
[382546193,1756663849762,-666.75,0.0001742,2]
[382546194,1756663849771,-596.14,0.0001742,2]
[382546195,1756663849781,-151.0,0.0001742,2]
[382546196,1756663849791,-151.0,0.0001742,2]
[382546197,1756663849800,-151.0,0.0001742,2]
[382546198,1756663849810,-480.0,0.0001742,2]
[382546199,1756663849820,-151.0,0.0001742,2]
[382546200,1756663849830,-480.0,0.0001742,2]
[382546201,1756663849840,-1198.43,0.0001742,2]
[382546202,1756663849849,-480.0,0.0001742,2]
[382546203,1756663849859,-151.0,0.0001742,2]
[382546204,1756663849869,-595.33,0.0001742,2]
[382546205,1756663849878,-409.74668676,0.0001742,2]
[382546206,1756663849888,-480.0,0.0001742,2]
[382546207,1756663849898,-151.0,0.0001742,2]
[382546208,1756663849907,-480.0,0.0001742,2]
[382546209,1756663849917,-480.0,0.0001742,2]
[382546210,1756663849927,-480.0,0.0001742,2]
[382546211,1756663849938,-536.49,0.0001742,2]
[382546212,1756663849948,-480.0,0.0001742,2]
[382546213,1756663849957,-151.0,0.0001742,2]
[382546214,1756663849967,-480.0,0.0001742,2]
[382546215,1756663849976,-480.0,0.0001742,2]
[382546216,1756663849986,-549.55,0.0001742,2]
[382546217,1756663849995,-516.35,0.0001742,2]
[382546218,1756663850006,-480.0,0.0001742,2]
[382546219,1756663850016,-962.38,0.0001742,2]
[382546220,1756663850026,-552.36,0.0001742,2]
[382546221,1756663850036,-973.51,0.0001742,2]
[382546222,1756663850048,-822.05,0.0001742,2]
[382546223,1756663850058,-480.0,0.0001742,2]
[382546224,1756663850067,-480.0,0.0001742,2]
[382546225,1756663850078,-480.0,0.0001742,2]
[382546226,1756663850087,-554.79,0.0001742,2]
[382546227,1756663850097,-519.71,0.0001742,2]
[382546228,1756663850106,-1180.13,0.0001742,2]
[382546229,1756663850116,-1022.47,0.0001742,2]
[382546230,1756663850126,-1156.67,0.0001742,2]
[382546231,1756663850137,-480.0,0.0001742,2]
[382546232,1756663850146,-480.0,0.0001742,2]
[382546233,1756663850158,-480.0,0.0001742,2]
[382546234,1756663850168,-1145.21,0.0001742,2]
[382546235,1756663850179,-995.96,0.0001742,2]
[382546236,1756663850188,-1177.74,0.0001742,2]
[382546237,1756663850197,-174.328887,0.0001742,2]
[382546238,1756663850207,-1260.57,0.0001742,2]
[382546239,1756663850217,-151.0,0.0001742,2]
[382546240,1756663850230,-210.11775553,0.0001742,2]
[382546241,1756663850239,-151.0,0.0001742,2]
[382546242,1756663850249,-226.906472,0.0001742,2]
[382546243,1756663850258,-151.0,0.0001742,2]
[382546244,1756663850268,-480.0,0.0001742,2]
[382546245,1756663850278,-480.0,0.0001742,2]
[382546246,1756663850288,-480.0,0.0001742,2]
[382546247,1756663850299,-480.0,0.0001742,2]
[382546248,1756663850309,-238.055936,0.0001742,2]
[382546249,1756663850319,-238.055936,0.0001742,2]
[382546250,1756663850329,-480.0,0.0001742,2]
[382546251,1756663850339,-238.055936,0.0001742,2]
[382546252,1756663850349,-238.055936,0.0001742,2]
[382546253,1756663850359,-291.68,0.0001742,2]
[382546254,1756663850368,-480.0,0.0001742,2]
[382546255,1756663850378,-480.0,0.0001742,2]
[382546256,1756663850392,-480.0,0.0001742,2]
[382546257,1756663850404,-500.0,0.0001742,2]
[382546258,1756663850414,-480.0,0.0001742,2]
[382546259,1756663850423,-151.0,0.0001742,2]
[382546260,1756663850433,-480.0,0.0001742,2]
[382546261,1756663850444,-166.626471,0.0001742,2]
[382546262,1756663850453,-480.0,0.0001742,2]
[382546263,1756663850463,-480.0,0.0001742,2]
[382546264,1756663850473,-480.0,0.0001742,2]
[382546265,1756663850483,-151.0,0.0001742,2]
[382546266,1756663850494,-480.0,0.0001742,2]
[382546267,1756663850505,-480.0,0.0001742,2]
[382546268,1756663850516,-151.0,0.0001742,2]
[382546269,1756663850526,-480.0,0.0001742,2]
[382546270,1756663850536,-480.0,0.0001742,2]
[382546271,1756663850547,-1814.06,0.0001742,2]
[382546272,1756663850557,-480.0,0.0001742,2]
[382546273,1756663850568,-1109.88,0.0001742,2]
[382546274,1756663850577,-480.0,0.0001742,2]
[382546275,1756663850587,-533.35,0.0001742,2]
[382546276,1756663850597,-707.16,0.0001742,2]
[382546277,1756663850607,-480.0,0.0001742,2]
[382546278,1756663850618,-637.31,0.0001742,2]
[382546279,1756663850630,-480.0,0.0001742,2]
[382546280,1756663850641,-480.0,0.0001742,2]
[382546281,1756663850652,-480.0,0.0001742,2]
[382546282,1756663850661,-1340.44,0.0001742,2]
[382546283,1756663850672,-480.0,0.0001742,2]
[382546284,1756663850682,-480.0,0.0001742,2]
[382546285,1756663850693,-480.0,0.0001742,2]
[382546286,1756663850703,-480.0,0.0001742,2]
[382546287,1756663850713,-480.0,0.0001742,2]
[382546288,1756663850723,-682.71,0.0001742,2]
[382546289,1756663850733,-416.95114487,0.0001742,2]
[382546290,1756663850743,-480.0,0.0001742,2]
[382546291,1756663850753,-480.0,0.0001742,2]
[382546292,1756663850763,-480.0,0.0001742,2]
[382546293,1756663850772,-480.0,0.0001742,2]
[382546294,1756663850782,-480.0,0.0001742,2]
[382546295,1756663850791,-559.12,0.0001742,2]
[382546296,1756663850802,-480.0,0.0001742,2]
[382546297,1756663850811,-620.91725656,0.0001742,2]
[382546298,1756663850821,-151.0,0.00017446,2]
[382546299,1756663850831,-151.0,0.00017446,2]
[382546300,1756663850841,-184.400329,0.00017446,2]
[382546301,1756663850850,-151.0,0.00017446,2]
[382546302,1756663850859,-151.0,0.00017446,2]
[382546303,1756663850868,-151.0,0.00017446,2]
[382546304,1756663850878,-151.0,0.00017447,2]
[382546305,1756663850887,-151.55384,0.00017447,2]
[382546306,1756663850898,-151.0,0.00017447,2]
[382546307,1756663850908,-480.0,0.00017447,2]
[382546308,1756663850918,-832.33,0.00017447,2]
[382546309,1756663850927,-1151.41,0.00017447,2]
[382546310,1756663850937,-1230.26,0.00017447,2]
[382546311,1756663850946,-601.63,0.00017447,2]
[382546312,1756663850956,-480.0,0.00017447,2]
[382546313,1756663850966,-557.89,0.00017447,2]
[382546314,1756663850976,-780.69,0.00017447,2]
[382546315,1756663850986,-480.0,0.00017447,2]
[382546316,1756663850995,-426.82320677,0.00017447,2]
[382546317,1756663851005,-708.49,0.00017447,2]
[382546318,1756663851015,-480.0,0.00017447,2]
[382546319,1756663851025,-480.0,0.00017447,2]
[382546320,1756663851034,-949.02,0.00017447,2]
[382546321,1756663851044,-480.0,0.00017447,2]
[382546322,1756663851055,-919.86,0.00017447,2]
[382546323,1756663851064,-151.0,0.00017447,2]
[382546324,1756663851074,-609.32,0.00017447,2]
[382546325,1756663851084,-229.27187394,0.00017447,2]
[382546326,1756663851093,-480.0,0.00017447,2]
[382546327,1756663851103,-480.0,0.00017447,2]
[382546328,1756663851113,-902.55,0.00017447,2]
[382546329,1756663851123,-1588.04,0.00017447,2]
[382546330,1756663851133,-480.0,0.00017447,2]
[382546331,1756663851143,-699.93,0.00017447,2]
[382546332,1756663851153,-480.0,0.00017447,2]
[382546333,1756663851163,-480.0,0.00017447,2]
[382546334,1756663851173,-480.0,0.00017447,2]
[382546335,1756663851183,-480.0,0.00017447,2]
[382546336,1756663851195,-480.0,0.00017447,2]
[382546337,1756663851207,-574.16,0.00017447,2]
[382546338,1756663851218,-480.0,0.00017447,2]
[382546339,1756663851233,-480.0,0.00017447,2]
[382546340,1756663851243,-122968.0314049,0.00017458,2]
[382546341,1756663851253,-151.0,0.00017458,2]
[382546342,1756663851262,-151.0,0.00017458,2]
[382546343,1756663851272,-151.0,0.00017458,2]
[382546344,1756663851282,-151.0,0.00017458,2]
[382546345,1756663851292,-151.0,0.00017458,2]
[382546346,1756663851304,-151.0,0.00017458,2]
[382546347,1756663851317,-151.0,0.00017458,2]
[382546348,1756663851327,-151.0,0.00017458,2]
[382546349,1756663851479,-151.0,0.00017458,2]
[382546350,1756663851499,-151.0,0.00017458,2]
[382546351,1756663851508,-290.506704,0.00017458,2]
[382546352,1756663851518,-151.0,0.00017458,2]
[382546353,1756663851527,-151.0,0.00017458,2]
[382546354,1756663851536,-151.0,0.00017458,2]
[382546355,1756663851546,-151.0,0.00017458,2]
[382546356,1756663851556,-151.0,0.00017458,2]
[382546357,1756663851565,-151.0,0.00017458,2]
[382546358,1756663851575,-151.0,0.00017458,2]